bitfinex/quotes_ETHUSD_20250726
["timestamp","ask_amount","ask_price","bid_price","bid_amount"]
[1753525377735,2.43400887,3767.9,3767.8,0.46]
[1753525377949,2.43400887,3767.9,3767.8,0.9433]
[1753525378645,2.43400887,3767.9,3767.8,3.59736868]
[1753525379247,2.43400887,3767.9,3767.8,0.9433]
[1753525379439,2.43400887,3767.9,3767.8,3.59736868]
[1753525379628,2.43400887,3767.9,3767.8,3.11406868]
[1753525379829,2.43400887,3767.9,3767.8,0.9433]
[1753525381921,2.43400887,3767.9,3767.8,0.001]
[1753525382930,2.93160887,3767.9,3767.8,0.001]
[1753525383134,3.5862075,3767.9,3767.8,0.001]
[1753525383333,3.61272302,3767.9,3767.8,0.001]
[1753525383840,3.57719863,3767.9,3767.8,0.001]
[1753525384076,3.58620599,3767.9,3767.8,0.001]
[1753525384285,2.43400736,3767.9,3767.8,0.001]
[1753525389863,2.68264504,3767.9,3767.8,0.001]
[1753525390242,3.20676056,3767.9,3767.8,0.001]
[1753525390967,2.70916056,3767.9,3767.8,0.001]
[1753525391132,3.20676056,3767.9,3767.8,0.001]
[1753525391667,3.18024504,3767.9,3767.8,0.001]
[1753525392171,7.06370425,3767.9,3767.8,0.001]
[1753525393452,7.31960425,3767.9,3767.8,0.001]
[1753525394643,7.06370425,3767.9,3767.8,0.001]
[1753525394851,41.10490425,3767.9,3767.8,0.001]
[1753525397036,40.35140425,3767.9,3767.8,0.001]
[1753525397371,10.84900425,3767.9,3767.8,0.001]
[1753525403166,41.10490425,3767.9,3767.8,1e-08]
[1753525403365,41.09589689,3767.9,3767.8,1e-08]
[1753525403756,41.10490561,3767.9,3767.8,1e-08]
[1753525406083,40.84900561,3767.9,3767.8,1e-08]
[1753525407267,37.37840561,3767.9,3767.8,1e-08]
[1753525407587,39.80040561,3767.9,3767.8,1e-08]
[1753525407887,40.35040561,3767.9,3767.8,1e-08]
[1753525408291,40.34139689,3767.9,3767.8,1e-08]
[1753525408479,40.35040612,3767.9,3767.8,1e-08]
[1753525409760,40.83070612,3767.9,3767.8,1e-08]
[1753525409961,10.83070612,3767.9,3767.8,1e-08]
[1753525410174,40.83070612,3767.9,3767.8,1e-08]
[1753525411401,40.35040612,3767.9,3767.8,1e-08]
[1753525412103,40.83070612,3767.9,3767.8,1e-08]
[1753525413697,10.83070612,3767.9,3767.8,1e-08]
[1753525413902,40.83070612,3767.9,3767.8,1e-08]
[1753525414195,3.55,3767.1,3767.0,0.001]
[1753525414397,0.784,3767.4,3767.0,0.001]
[1753525414560,3.0,3767.2,3767.0,0.001]
[1753525414755,2.422,3767.1,3767.0,0.001]
[1753525414960,8.07656186,3767.1,3767.0,0.001]
[1753525415194,10.05555564,3767.1,3767.0,0.001]
[1753525415399,10.83955564,3767.1,3767.0,0.001]
[1753525415604,10.06456487,3767.1,3767.0,0.9219]
[1753525416007,10.31293449,3767.1,3767.0,0.9219]
[1753525416813,6.22937885,3767.1,3767.0,0.9219]
[1753525417314,2.68037885,3767.1,3767.0,0.9219]
[1753525417476,2.43200923,3767.1,3767.0,0.9219]
[1753525424220,2.56480923,3767.1,3767.0,0.9219]
[1753525428783,2.56480923,3767.1,3767.0,3.57653233]
[1753525428784,0.14180923,3767.1,3767.0,3.57653233]
[1753525428990,2.42900923,3767.1,3767.0,4.99546171]
[1753525429292,2.42,3767.1,3767.0,4.99546171]
[1753525433117,2.42900973,3767.1,3767.0,4.99546171]
[1753525433302,2.42900973,3767.1,3767.0,4.37233233]
[1753525440211,2.42900973,3767.1,3767.0,2.65563233]
[1753525440419,2.42900973,3767.1,3767.0,4.38273233]
[1753525444856,0.00900973,3767.1,3767.0,4.38273233]
[1753525445059,2.42900973,3767.1,3767.0,4.38273233]
[1753525445259,2.42900973,3767.1,3767.0,5.08913667]
[1753525452946,2.42900973,3767.1,3767.0,2.65563233]
[1753525453136,2.89710973,3767.1,3767.0,0.001]
[1753525453648,2.42900973,3767.1,3767.0,3.57583233]
[1753525460975,2.42900973,3767.1,3767.0,3.11713233]
[1753525461174,2.42900973,3767.1,3767.0,2.65563233]
[1753525462371,2.92050973,3767.1,3767.0,0.001]
[1753525462706,3.6145407,3767.1,3767.0,0.001]
[1753525463890,3.3586407,3767.1,3767.0,0.001]
[1753525465301,0.14180973,3767.1,3767.0,3.58163233]
[1753525465601,2.42700973,3767.1,3767.0,3.58163233]
[1753525471110,2.42700973,3767.1,3767.0,0.001]
[1753525471312,2.91850973,3767.1,3767.0,0.001]
[1753525471606,3.99175667,3767.1,3767.0,0.001]
[1753525471776,3.96524115,3767.1,3767.0,0.001]
[1753525472311,3.21784115,3767.1,3767.0,0.001]
[1753525472912,2.55980973,3767.1,3767.0,0.001]
[1753525474013,3.05130973,3767.1,3767.0,0.001]
[1753525478394,2.55980973,3767.1,3767.0,0.001]
[1753525478791,0.14180973,3767.1,3767.0,3.58163233]
[1753525478991,0.00900973,3767.1,3767.0,3.58163233]
[1753525479205,2.42700973,3767.1,3767.0,3.58163233]
[1753525479615,2.42700973,3767.1,3767.0,3.09633233]
[1753525479820,2.42700973,3767.1,3767.0,0.001]
[1753525480015,2.7321407,3767.1,3767.0,0.001]
[1753525480243,3.38295622,3767.1,3767.0,0.001]
[1753525480544,3.3564407,3767.1,3767.0,0.001]
[1753525483847,3.38295622,3767.1,3767.0,0.001]
[1753525485456,6.29341808,3767.1,3767.0,0.001]
[1753525485660,6.25789283,3767.1,3767.0,0.001]
[1753525485857,6.26690239,3767.1,3767.0,0.001]
[1753525487223,6.01100239,3767.1,3767.0,0.001]
[1753525487924,3.35644053,3767.1,3767.0,0.001]
[1753525488156,3.38295605,3767.1,3767.0,0.001]
[1753525488534,3.35644053,3767.1,3767.0,0.001]
[1753525488851,2.86494053,3767.1,3767.0,0.001]
[1753525489962,2.86494053,3767.1,3767.0,0.4345]
[1753525491176,2.86494053,3767.1,3767.0,0.001]
[1753525493468,0.44694053,3767.1,3767.0,0.001]
[1753525493665,2.86494053,3767.1,3767.0,0.001]
[1753525497757,2.86494053,3767.1,3766.9,2.65272519]
[1753525500868,2.86494053,3767.1,3766.9,3.08622519]
[1753525501046,2.86494053,3767.1,3766.9,3.57302519]
[1753525501959,2.55980956,3767.1,3767.0,3.57493233]
[1753525502964,0.14180956,3767.1,3767.0,3.08813233]
[1753525503165,2.418,3767.1,3767.0,3.57493233]
[1753525503455,2.42701016,3767.1,3767.0,4.33483233]
[1753525503663,2.418,3767.1,3767.0,4.33483233]
[1753525507605,2.42700956,3767.1,3767.0,4.33483233]
[1753525507993,0.00900956,3767.1,3767.0,9.77559717]
[1753525508157,2.42700956,3767.1,3767.0,9.88185085]
[1753525509103,0.002,3767.8,3767.5,2.65428002]
[1753525509304,0.002,3767.8,3767.7,3.41403912]
[1753525509458,0.002,3767.9,3767.8,3.48356868]
[1753525509682,0.002,3767.9,3767.8,4.43040936]
[1753525509928,0.002,3767.9,3767.8,4.40386868]
[1753525510635,1e-08,3768.1,3768.0,2.65392781]
[1753525510923,0.002,3768.2,3768.1,3.48335738]
[1753525511303,0.002,3768.2,3768.1,4.40365738]
[1753525527031,1e-08,3768.2,3768.1,4.40365738]
[1753525527194,1e-08,3768.2,3768.1,4.43019595]
[1753525530635,1e-08,3768.2,3768.1,4.40365738]
[1753525530812,1e-08,3768.2,3768.1,5.22397158]
[1753525531326,1e-08,3768.2,3768.1,7.63997158]
[1753525532039,0.002,3768.7,3768.6,8.10828829]
[1753525532240,0.002,3769.0,3768.9,2.65329406]
[1753525532406,0.002,3769.0,3768.9,2.812627]
[1753525532606,0.002,3769.0,3768.9,3.86577848]
[1753525532931,0.002,3769.0,3768.9,4.78037848]
[1753525537034,0.002,3769.0,3768.9,7.19637848]
[1753525537233,2.65167585,3771.2,3769.2,0.7829]
[1753525537443,2.65167585,3771.2,3768.9,6.94218442]
[1753525537444,1.5014842,3771.2,3770.6,4.70198301]
[1753525537656,0.4829,3771.1,3770.6,2.65203303]
[1753525537822,0.4829,3771.1,3770.5,2.65216814]
[1753525538022,1.0266,3771.2,3770.8,2.65188983]
[1753525538023,0.4829,3771.0,3770.8,2.65188983]
[1753525538253,0.4829,3770.9,3770.8,2.65188983]
[1753525538860,0.7663,3770.8,3770.0,2.65251127]
[1753525539040,0.02651552,3770.7,3769.6,0.8292]
[1753525539355,2.421,3770.6,3770.3,2.65230597]
[1753525539526,2.421,3770.6,3770.4,0.4465]
[1753525539725,1.2492,3771.0,3770.4,0.4465]
[1753525539924,3.6712,3771.0,3770.6,2.6520978]
[1753525540128,0.2559,3771.4,3771.1,2.6517418]
[1753525540129,0.8663,3771.3,3771.1,2.6517418]
[1753525540356,0.8663,3771.3,3771.0,2.65181088]
[1753525540357,2.422,3771.2,3771.0,2.65181088]
[1753525540760,0.4829,3771.1,3770.4,0.8268889]
[1753525541067,0.7663,3771.0,3770.1,2.65238111]
[1753525541218,0.76531552,3770.9,3769.7,0.8292]
[1753525541419,2.65210631,3770.6,3769.7,2.65266976]
[1753525541653,0.7663,3770.4,3769.4,2.65289765]
[1753525541851,0.7663,3770.4,3769.1,1.2757]
[1753525541852,1.5051,3770.3,3768.9,4.70198301]
[1753525542052,3.1638,3770.2,3769.5,2.65282413]
[1753525542219,3.1638,3770.2,3769.6,2.65274313]
[1753525542220,0.002,3769.8,3769.6,2.65274313]
[1753525542424,0.4829,3769.7,3769.6,2.65278792]
[1753525542660,0.002,3769.8,3769.6,2.65280135]
[1753525542835,0.002,3769.8,3769.1,4.70198301]
[1753525543041,0.4829,3769.7,3769.4,2.65291993]
[1753525543246,0.4829,3769.6,3769.4,2.65291993]
[1753525543447,3.41865655,3770.3,3769.4,2.65291993]
[1753525543448,0.00899969,3770.8,3769.5,0.7553]
[1753525543649,0.00899969,3770.8,3769.6,0.94112801]
[1753525543855,0.00899969,3770.8,3770.0,4.70198301]
[1753525543856,0.4829,3770.7,3770.0,4.70198301]
[1753525544031,0.4829,3770.7,3770.3,2.65226181]
[1753525544233,0.4829,3770.6,3770.4,2.65223099]
[1753525544452,0.4829,3770.6,3770.5,2.65216814]
[1753525544672,2.443,3770.7,3770.5,2.65216814]
[1753525544864,0.00899969,3770.8,3770.7,2.65202747]
[1753525545360,2.45199969,3770.8,3770.7,2.65202747]
[1753525545754,0.00899969,3770.8,3770.7,2.65202747]
[1753525545964,2.45099969,3770.8,3770.7,2.65202747]
[1753525546161,2.442,3770.8,3770.7,2.65202747]
[1753525546359,0.7554,3770.9,3770.8,2.65195714]
[1753525546543,2.442,3770.9,3770.8,3.12005714]
[1753525546742,2.442,3770.9,3770.8,2.65195714]
[1753525547041,2.442,3770.9,3770.7,2.65201848]
[1753525547471,0.4829,3770.8,3770.5,2.6521232]
[1753525547644,0.7554,3770.8,3770.4,0.1328]
[1753525548041,0.4597,3770.7,3770.2,2.65233187]
[1753525548369,0.4597,3770.7,3770.5,2.65215044]
[1753525548861,0.4597,3770.6,3770.4,2.65223023]
[1753525549054,0.4597,3770.5,3770.4,2.65223023]
[1753525549454,0.8882,3770.8,3770.6,2.65208227]
[1753525549663,0.8882,3770.8,3770.5,2.65210337]
[1753525549869,0.4597,3770.7,3770.5,2.65210337]
[1753525550890,0.00900205,3770.6,3770.5,2.65210337]
[1753525552479,0.00900205,3770.6,3770.4,2.65223174]
[1753525553081,0.46870205,3770.6,3770.4,2.65223144]
[1753525553279,0.60150205,3770.6,3770.4,2.65223144]
[1753525553459,1.00714026,3770.6,3770.3,2.65230392]
[1753525553652,0.4597,3770.5,3770.3,2.65230392]
[1753525553977,0.4597,3770.4,3770.3,2.65230392]
[1753525554182,0.54744026,3770.6,3770.3,2.65230392]
[1753525554546,0.4597,3770.5,3770.3,2.65230392]
[1753525555689,0.54744026,3770.6,3770.1,0.1328]
[1753525555890,0.8209,3770.3,3769.5,0.9068]
[1753525556093,2.439,3770.2,3769.8,2.7854209]
[1753525556295,2.439,3770.2,3770.1,2.65244953]
[1753525557094,0.9537,3770.3,3770.2,2.65237918]
[1753525557095,0.1328,3770.3,3770.2,2.65237918]
[1753525557305,2.5718,3770.3,3770.2,2.65237918]
[1753525557511,2.5718,3770.3,3770.2,3.55917918]
[1753525558799,2.5718,3770.3,3770.0,2.65250671]
[1753525559163,0.4597,3770.2,3770.0,2.65250671]
[1753525559701,0.7928,3770.0,3769.8,2.65264092]
[1753525559906,1.2525,3770.0,3769.8,2.65264092]
[1753525560306,0.7928,3770.0,3769.8,2.65264092]
[1753525560507,1.2525,3770.0,3769.5,0.9068]
[1753525560809,0.5925,3769.9,3769.2,0.9068]
[1753525560971,0.1328,3769.7,3769.4,2.65288309]
[1753525561168,2.438,3769.6,3769.4,2.65288309]
[1753525561406,2.438,3769.6,3769.2,3.55987792]
[1753525561407,2.438,3769.6,3769.3,2.65301249]
[1753525561702,2.438,3769.6,3769.4,2.65293468]
[1753525563783,2.438,3769.6,3769.3,3.10290553]
[1753525563994,0.7721,3769.4,3768.6,0.9068]
[1753525564185,0.1328,3769.2,3768.9,2.65327995]
[1753525564907,0.4597,3769.1,3768.7,0.1328]
[1753525565205,2.437,3769.0,3768.9,2.65329406]
[1753525565579,2.44600291,3769.0,3768.9,2.65329406]
[1753525565974,2.44600291,3769.0,3768.9,3.56009406]
[1753525566311,0.00900291,3769.0,3768.9,3.56009406]
[1753525566489,2.44600291,3769.0,3768.9,3.56009406]
[1753525566985,0.00900291,3769.0,3768.9,4.9726267]
[1753525567307,2.438,3769.6,3769.5,2.65287173]
[1753525567677,2.438,3769.6,3769.5,3.55967173]
[1753525567875,0.14180291,3770.0,3769.9,2.65259025]
[1753525568079,0.00900291,3770.0,3769.9,2.65259025]
[1753525568321,0.00900291,3770.0,3769.9,3.55939025]
[1753525568479,2.44800291,3770.0,3769.9,3.55939025]
[1753525568678,2.439,3770.0,3769.9,3.55939025]
[1753525569496,2.439,3770.0,3769.9,3.10249025]
[1753525569705,2.439,3770.0,3769.9,2.65259025]
[1753525570112,2.439,3770.0,3769.9,3.55939025]
[1753525570524,0.1328,3770.3,3770.1,2.65244094]
[1753525570728,2.438,3770.2,3770.1,2.65244094]
[1753525571227,2.438,3770.2,3770.1,0.9068]
[1753525571922,2.438,3770.2,3770.1,3.55924953]
[1753525572305,2.438,3770.2,3770.1,2.65244953]
[1753525572527,2.438,3770.2,3770.1,3.10234953]
[1753525572942,0.1328,3770.3,3770.2,2.65237918]
[1753525573094,2.5708,3770.3,3770.2,2.65237918]
[1753525573293,2.5708,3770.3,3770.2,0.9068]
[1753525573492,2.5708,3770.3,3770.0,2.652509]
[1753525573996,2.5708,3770.3,3769.9,2.65258436]
[1753525574339,0.1328,3770.3,3769.9,2.65258436]
[1753525574490,0.1328,3770.3,3769.8,2.65264141]
[1753525574491,2.8967,3770.2,3769.8,2.65264141]
[1753525574703,1.2804,3770.1,3769.2,3.10296494]
[1753525574901,0.1328,3769.8,3769.6,2.65277265]
[1753525575106,0.00900117,3769.7,3769.6,2.65277265]
[1753525575325,0.00900117,3769.7,3769.5,2.65285431]
[1753525575634,2.438,3769.6,3769.5,2.65285431]
[1753525575827,2.438,3769.6,3769.5,3.55965431]
[1753525577452,2.438,3769.6,3769.4,2.65292147]
[1753525577810,2.438,3769.6,3769.5,2.65287173]
[1753525578015,2.438,3769.6,3769.5,3.54497173]
[1753525579115,2.438,3769.6,3769.3,0.1328]
[1753525579445,2.437,3769.5,3769.4,2.65294211]
[1753525580450,0.00900117,3769.7,3769.5,2.65282829]
[1753525580648,2.436,3769.6,3769.5,2.65282829]
[1753525581856,2.436,3769.6,3769.3,0.1328]
[1753525582151,2.436,3769.6,3769.3,0.8921]
[1753525582340,2.436,3769.6,3769.4,2.65292746]
[1753525582541,2.436,3769.6,3769.4,3.08742746]
[1753525582855,2.435,3769.5,3769.4,3.08742746]
[1753525584026,2.435,3769.5,3769.3,2.65301146]
[1753525584253,2.435,3769.5,3769.3,3.08751146]
[1753525584860,2.435,3769.5,3769.2,2.65306517]
[1753525585269,2.435,3769.5,3769.2,3.08756517]
[1753525585769,2.435,3769.5,3769.2,3.54516517]
[1753525586093,2.42796973,3769.5,3769.2,3.54516517]
[1753525587283,2.42796973,3769.5,3769.3,2.65299924]
[1753525588475,2.42796973,3769.5,3769.2,2.65307238]
[1753525588872,0.7576,3769.4,3768.6,0.001]
[1753525589066,0.1328,3769.0,3768.6,0.4586]
[1753525589380,0.1328,3769.0,3768.9,7.35503945]
[1753525589554,2.5658,3769.0,3768.9,4.70174539]
[1753525589750,2.5658,3769.0,3768.9,5.59384539]
[1753525590155,2.57480325,3769.0,3768.9,5.59384539]
[1753525590681,0.00900325,3769.0,3768.9,9.89426612]
[1753525590879,0.00900325,3769.0,3768.9,10.02706612]
[1753525593379,2.434,3769.2,3769.1,2.65315327]
[1753525593585,0.1328,3769.7,3769.4,2.65288408]
[1753525593892,2.434,3769.6,3769.4,4.70174539]
[1753525594251,2.434,3769.6,3769.4,5.59384539]
[1753525594754,2.434,3769.6,3769.5,2.65287173]
[1753525596393,2.434,3769.6,3769.5,3.08737173]
[1753525596708,2.9085,3769.6,3769.1,2.65310036]
[1753525596877,0.1328,3769.4,3769.1,2.65310036]
[1753525597672,0.1328,3769.4,3769.1,3.08760036]
[1753525598763,0.1328,3769.4,3769.1,2.65310036]
[1753525598964,0.1328,3769.4,3769.1,3.54520036]
[1753525600098,0.1328,3769.4,3769.1,3.08760036]
[1753525600284,0.00900301,3769.3,3769.1,3.08760036]
[1753525601493,0.00900301,3769.3,3769.1,0.4345]
[1753525601702,0.00900301,3769.3,3769.1,3.54524108]
[1753525602394,0.00900301,3769.3,3769.2,3.08758288]
[1753525603096,0.00900301,3769.3,3769.0,2.65317199]
[1753525603290,0.00900301,3769.3,3769.2,2.65308288]
[1753525603886,0.00900301,3769.3,3769.2,3.08758288]
[1753525604082,0.00900301,3769.3,3769.2,3.54518288]
[1753525605982,2.44000301,3769.3,3769.2,3.54518288]
[1753525606186,2.44000301,3769.3,3769.2,0.8921]
[1753525606810,2.44000301,3769.3,3769.0,0.4576]
[1753525607105,2.44000301,3769.3,3768.9,0.4355]
[1753525607267,2.91450301,3769.3,3768.9,0.8931]
[1753525607600,0.1328,3769.0,3768.9,0.001]
[1753525608102,0.1328,3769.0,3768.9,8.27513945]
[1753525608703,2.43,3769.0,3768.9,8.27513945]
[1753525612332,2.43,3769.0,3768.9,0.001]
[1753525612484,3.05310444,3769.0,3768.9,0.001]
[1753525617995,2.57180444,3769.0,3768.9,0.001]
[1753525618316,2.57180444,3769.0,3768.9,0.4542]
[1753525618616,2.57180444,3769.0,3768.9,3.57339406]
[1753525619690,2.57180444,3769.0,3768.9,0.9201]
[1753525621740,2.57180444,3769.0,3768.9,3.57339406]
[1753525622034,2.57180444,3769.0,3768.9,0.9201]
[1753525622318,2.57180444,3769.0,3768.9,3.10749406]
[1753525622692,2.57180444,3769.0,3768.9,3.57339406]
[1753525623351,2.43600444,3769.0,3768.9,3.57339406]
[1753525626785,2.43600444,3769.0,3768.9,3.10749406]
[1753525627124,2.43600444,3769.0,3768.9,2.65429406]
[1753525627901,2.43600444,3769.0,3768.9,0.001]
[1753525629226,2.43400444,3769.0,3768.9,0.001]
[1753525629988,2.43400444,3769.0,3768.9,2.65429406]
[1753525630220,2.43400444,3769.0,3768.9,3.57339406]
[1753525632130,2.43400444,3769.0,3768.9,0.9201]
[1753525632734,0.00900444,3769.0,3768.9,0.9201]
[1753525633032,2.43300444,3769.0,3768.9,3.57339406]
[1753525634110,2.43300444,3769.0,3768.9,0.4542]
[1753525634311,2.43300444,3769.0,3768.9,0.001]
[1753525635308,2.43300444,3769.0,3768.9,2.65429406]
[1753525636340,2.43300444,3769.0,3768.9,3.10749406]
[1753525637143,2.43300444,3769.0,3768.9,0.4542]
[1753525638413,2.43300444,3769.0,3768.9,3.10749406]
[1753525638743,2.43200444,3769.0,3768.9,3.57449406]
[1753525643057,2.43100444,3769.0,3768.9,3.57449406]
[1753525643755,0.00900444,3769.0,3768.9,4.68092441]
[1753525643916,0.00900444,3769.0,3768.9,5.57702441]
[1753525650181,0.00900444,3769.0,3768.9,4.81372441]
[1753525650469,0.00900444,3769.0,3768.9,4.34672441]
[1753525650667,0.00900444,3769.0,3768.9,2.78709406]
[1753525651431,0.00900444,3769.0,3768.9,7.8118722]
[1753525651673,0.00900444,3769.0,3768.9,8.2788722]
[1753525654162,0.00900444,3769.0,3768.9,7.8118722]
[1753525654336,0.00900444,3769.0,3768.9,9.41687255]
[1753525672310,0.00900444,3769.0,3768.9,8.49487255]
[1753525672518,0.00900444,3769.0,3768.9,9.43827255]
[1753525680225,0.002,3769.5,3769.4,2.65294211]
[1753525680896,0.4626,3769.5,3769.4,2.65294211]
[1753525683608,0.002,3769.5,3769.4,2.65294211]
[1753525690838,0.002,3769.5,3769.4,3.59634211]
[1753525691855,0.002,3769.5,3769.4,3.10474211]
[1753525692952,0.002,3769.5,3769.4,2.65294211]
[1753525695147,0.002,3769.5,3769.4,2.65394211]
[1753525697676,2.422,3769.5,3769.4,2.65394211]
[1753525701457,2.8991,3769.5,3769.4,2.65394211]
[1753525701969,2.422,3769.5,3769.4,2.65394211]
[1753525704083,0.002,3769.5,3769.4,3.69655938]
[1753525704251,0.24881133,3770.2,3770.1,2.65244953]
[1753525704450,0.1348,3770.3,3770.2,2.65237918]
[1753525704669,0.38359344,3770.3,3770.2,2.65237918]
[1753525704992,0.38359053,3770.3,3770.2,2.65237918]
[1753525705272,0.86060431,3770.3,3769.7,2.78551243]
[1753525705596,0.9561,3770.1,3769.4,0.1338]
[1753525705886,0.8233,3770.1,3769.4,0.1338]
[1753525706055,0.8233,3770.0,3769.4,0.1338]
[1753525706262,1.5563,3770.0,3769.4,2.78671884]
[1753525706460,0.4771,3769.9,3769.4,2.78671884]
[1753525706670,0.1328,3769.6,3769.4,2.65391884]
[1753525706869,2.419,3769.5,3769.4,2.65391884]
[1753525708860,2.419,3769.5,3769.4,2.65394211]
[1753525710550,0.1328,3769.6,3769.5,2.65287173]
[1753525710751,2.5518,3769.6,3769.5,2.65287173]
[1753525712185,0.1328,3769.6,3769.5,3.10537173]
[1753525712357,2.5518,3770.1,3770.0,2.65251989]
[1753525712554,2.5518,3770.1,3770.0,3.56641989]
[1753525712555,2.56080291,3770.1,3770.0,3.56641989]
[1753525712955,2.5518,3770.1,3770.0,3.56641989]
[1753525713267,2.56080291,3770.1,3770.0,3.56641989]
[1753525714698,2.56080291,3770.1,3770.0,2.65251989]
[1753525714860,3.3762932,3770.1,3769.9,2.65252602]
[1753525715065,2.8991932,3770.1,3769.9,2.65252602]
[1753525715353,2.8491932,3770.1,3769.9,2.65252602]
[1753525715559,0.8211,3769.9,3769.7,2.65272217]
[1753525715760,0.6099,3769.8,3769.7,2.65272217]
[1753525716204,0.6099,3769.8,3769.6,2.65278698]
[1753525716394,0.4771,3769.7,3769.6,2.65278698]
[1753525716601,0.1328,3769.8,3769.6,2.65278698]
[1753525716959,0.6099,3769.8,3769.6,2.65278698]
[1753525717160,0.6099,3769.8,3769.7,2.65273098]
[1753525717691,0.1328,3769.8,3769.7,2.65273098]
[1753525718290,0.14180291,3769.8,3769.7,2.65273098]
[1753525718794,0.14180291,3769.8,3769.6,2.65279044]
[1753525718955,0.14180291,3769.8,3769.5,0.001]
[1753525718956,0.42894223,3769.8,3769.5,0.001]
[1753525719157,0.1328,3769.6,3769.5,0.001]
[1753525719357,2.5518,3769.6,3769.5,0.001]
[1753525719592,2.56080291,3769.6,3769.5,0.001]
[1753525720009,3.03790291,3769.6,3769.5,0.001]
[1753525720303,3.0289,3769.6,3769.5,0.001]
[1753525720505,3.45589393,3769.6,3769.5,0.001]
[1753525720799,10.99329474,3769.6,3769.5,0.001]
[1753525721876,41.1223152,3769.6,3769.5,0.001]
[1753525722908,40.8664152,3769.6,3769.5,0.001]
[1753525723113,41.11331269,3769.6,3769.5,0.001]
[1753525723293,41.1223152,3769.6,3769.5,0.001]
[1753525724188,41.1223152,3769.6,3768.9,0.001]
[1753525724189,3.20322366,3769.0,3768.9,0.001]
[1753525724394,0.55,3768.8,3768.7,0.001]
[1753525724589,8.54629695,3768.8,3768.7,0.001]
[1753525724793,11.19966141,3768.8,3768.7,0.001]
[1753525724995,11.93266141,3768.8,3768.7,0.001]
[1753525725704,11.94166392,3768.8,3768.7,0.001]
[1753525725904,13.70161621,3768.8,3768.7,0.001]
[1753525726905,43.70161621,3768.8,3768.7,0.001]
[1753525728388,45.8557137,3768.8,3768.7,0.001]
[1753525728779,45.86471817,3768.8,3768.7,0.001]
[1753525731118,12.96861817,3768.8,3768.7,0.001]
[1753525731319,15.38861817,3768.8,3768.7,0.001]
[1753525731524,5.00530142,3768.8,3768.7,0.001]
[1753525731822,6.3758,3768.8,3768.7,0.9462]
[1753525731992,6.38480731,3768.8,3768.7,4.39853487]
[1753525732398,3.83200731,3768.8,3768.7,4.39853487]
[1753525732599,6.243,3768.8,3768.7,4.53133487]
[1753525732824,6.25200731,3768.8,3768.7,5.72028099]
[1753525734415,6.25200731,3768.8,3768.7,4.39853487]
[1753525735324,6.25200731,3768.8,3768.7,3.59963487]
[1753525737622,6.243,3768.8,3768.7,3.59963487]
[1753525737846,6.25200451,3768.8,3768.7,3.59963487]
[1753525742199,6.25100451,3768.8,3768.7,3.59963487]
[1753525742729,3.83200451,3768.8,3768.7,4.31873545]
[1753525742943,6.25100451,3768.8,3768.7,4.31873545]
[1753525743832,6.25100451,3768.8,3768.7,4.45153545]
[1753525744935,6.25100451,3768.8,3768.7,3.59963487]
[1753525751523,6.25100451,3768.8,3768.7,2.65443487]
[1753525751863,6.84000451,3768.8,3768.7,0.001]
[1753525752021,6.38380451,3768.8,3768.7,0.001]
[1753525752220,6.38380451,3768.8,3768.7,0.9462]
[1753525752621,6.38380451,3768.8,3768.7,0.001]
[1753525753143,6.38380451,3768.8,3768.7,0.4534]
[1753525753356,6.38380451,3768.8,3768.7,0.9462]
[1753525753726,6.38380451,3768.8,3768.7,0.4534]
[1753525754649,3.96480451,3768.8,3768.7,0.4534]
[1753525754852,6.38380451,3768.8,3768.7,0.4534]
[1753525755154,6.38380451,3768.8,3768.7,0.001]
[1753525755468,6.84000451,3768.8,3768.7,0.001]
[1753525755627,7.52420496,3768.8,3768.7,0.001]
[1753525756362,7.52420496,3768.8,3768.2,0.9452]
[1753525756363,0.55,3768.2,3767.6,0.001]
[1753525756574,6.46382781,3768.0,3767.6,0.001]
[1753525756726,7.01382781,3768.0,3767.6,0.001]
[1753525757066,8.73521437,3768.0,3767.6,0.001]
[1753525757767,8.99111437,3768.0,3767.6,0.001]
[1753525762764,9.23933852,3768.0,3767.6,0.001]
[1753525763930,8.98343852,3768.0,3767.6,0.001]
[1753525765129,5.32331071,3768.0,3767.7,0.9171]
[1753525765398,6.50312828,3768.0,3767.6,0.001]
[1753525765599,5.69322828,3768.0,3767.9,0.9181]
[1753525765768,5.69422828,3768.0,3767.9,0.9181]
[1753525765967,0.00900413,3768.0,3767.9,0.9181]
[1753525766167,2.44600413,3768.0,3767.9,0.9181]
[1753525766400,2.57880413,3768.0,3767.9,0.9181]
[1753525767303,2.57880413,3768.0,3767.9,0.001]
[1753525768878,2.57880413,3768.0,3767.9,0.4525]
[1753525769795,2.57880413,3768.0,3767.9,0.9181]
[1753525770203,0.14180413,3768.0,3767.9,0.9181]
[1753525770506,2.57780413,3768.0,3767.9,0.9181]
[1753525772467,2.57780413,3768.0,3767.9,0.4525]
[1753525772694,2.57780413,3768.0,3767.9,0.001]
[1753525776031,0.14180413,3768.0,3767.9,0.001]
[1753525776238,2.57580413,3768.0,3767.9,0.9181]
[1753525776442,2.434,3768.0,3767.9,9.08927638]
[1753525776803,2.44300841,3768.0,3767.9,9.08927638]
[1753525777028,2.434,3768.0,3767.9,9.08927638]
[1753525777216,2.44300841,3768.0,3767.9,9.08927638]
[1753525777413,2.44300841,3768.0,3767.9,10.2638166]
[1753525782019,2.44300841,3768.0,3767.9,5.56123846]
[1753525782219,2.44300841,3768.0,3767.9,4.38669824]
[1753525782436,2.44300841,3768.0,3767.9,3.46959824]
[1753525782632,2.90230841,3768.0,3767.9,0.001]
[1753525783042,2.44300841,3768.0,3767.9,0.001]
[1753525783343,2.44300841,3768.0,3767.9,0.4525]
[1753525784148,2.44500841,3768.0,3767.9,0.4525]
[1753525784937,2.44500841,3768.0,3767.9,0.001]
[1753525786159,0.01100841,3768.0,3767.9,2.65499824]
[1753525786351,2.57580841,3768.0,3767.9,3.57209824]
[1753525787866,2.44300841,3768.0,3767.9,3.57209824]
[1753525789667,2.44300841,3768.0,3767.9,0.9181]
[1753525789962,2.44300841,3768.0,3767.9,0.001]